bitfinex-derivatives/quotes_BNBF0:USTF0_20250807
["timestamp","ask_amount","ask_price","bid_price","bid_amount"]
[1754588809981,1.126,774.87,774.74,0.86375878]
[1754588811787,1.126,774.87,774.73,0.86375878]
[1754588812586,1.126,774.87,774.74,0.86375878]
[1754588813486,1.126,774.87,774.75,0.86375878]
[1754588813786,1.126,774.87,774.73,0.86375878]
[1754588813983,1.126,774.87,773.79,2.8786458]
[1754588813984,1.126,774.87,774.75,0.86375878]
[1754588814286,1.126,774.87,774.74,0.86375878]
[1754588814586,1.126,774.87,774.75,0.86375878]
[1754588814782,1.126,774.87,774.77,0.86375878]
[1754588815082,1.126,774.87,774.81,0.86375878]
[1754588817387,1.126,774.87,774.8,0.86375878]
[1754588818785,1.126,774.87,774.74,0.86375878]
[1754588819486,1.126,774.87,774.75,0.86375878]
[1754588819987,1.126,774.87,774.74,0.86375878]
[1754588820289,1.126,774.87,774.73,0.86375878]
[1754588820890,1.126,774.87,774.77,0.86375878]
[1754588821190,1.126,774.87,774.78,0.86375878]
[1754588823693,1.126,774.87,774.77,0.86375878]
[1754588826595,1.126,774.87,774.76,0.86375878]
[1754588828492,1.126,774.87,774.81,0.86375878]
[1754588828697,1.126,774.87,774.82,0.86375878]
[1754588833801,1.126,774.87,774.72,1.1444425]
[1754588835001,1.126,774.87,774.86,0.86249377]
[1754588836198,1.126,774.87,774.81,0.86249377]
[1754588836601,1.126,774.87,774.82,0.86249377]
[1754588836802,0.978,774.97,774.82,0.86249377]
[1754588837099,0.978,774.97,774.81,0.86249377]
[1754588839505,0.978,774.97,774.82,0.86249377]
[1754588840101,0.978,774.97,774.81,0.86249377]
[1754588840402,0.978,774.97,774.82,0.86249377]
[1754588842405,0.978,774.97,774.89,0.86249377]
[1754588843003,0.978,774.97,774.9,0.86249377]
[1754588843507,0.978,774.97,774.89,0.86249377]
[1754588844406,0.978,774.97,774.88,0.86249377]
[1754588844808,0.978,774.97,774.9,0.86249377]
[1754588845304,0.978,774.97,774.86,0.86249377]
[1754588845705,0.978,774.97,774.92,0.86249377]
[1754588845907,0.978,774.97,774.95,0.86249377]
[1754588846109,0.978,774.97,774.84,0.86249377]
[1754588846406,0.978,774.97,774.81,0.86249377]
[1754588847308,0.978,774.97,774.79,0.86249377]
[1754588848305,0.978,774.97,774.8,0.86249377]
[1754588850609,0.978,774.97,774.81,0.86249377]
[1754588851009,0.978,774.97,774.79,0.86249377]
[1754588851912,0.978,774.97,774.8,0.86249377]
[1754588852809,0.978,774.97,774.78,0.86249377]
[1754588855614,0.978,774.97,774.79,0.86249377]
[1754588855811,0.978,774.97,774.78,0.86249377]
[1754588856014,0.978,774.97,774.79,0.86249377]
[1754588859415,0.978,774.97,774.8,0.86249377]
[1754588860713,0.978,774.97,774.81,0.86249377]
[1754588862417,0.978,774.97,774.82,0.86249377]
[1754588862817,0.978,774.97,774.84,0.86249377]
[1754588863017,0.978,774.97,774.65,1.1444425]
[1754588863217,0.978,774.97,774.84,0.86350012]
[1754588863613,0.978,774.97,774.85,0.86350012]
[1754588865116,0.922,775.04,774.92,0.86350012]
[1754588865519,0.922,775.04,774.93,0.86350012]
[1754588865716,0.922,775.04,774.96,0.86350012]
[1754588867617,0.922,775.04,774.07,2.8786458]
[1754588867618,0.922,775.04,774.97,0.86350012]
[1754588870025,0.922,775.04,774.97,0.86362154]
[1754588870624,0.922,775.04,774.98,0.86362154]
[1754588871224,0.922,775.04,774.97,0.86362154]
[1754588871723,0.922,775.04,775.01,0.86362154]
[1754588872323,0.922,775.04,775.02,0.86362154]
[1754588873228,0.922,775.04,775.03,0.86362154]
[1754588876139,0.922,775.04,775.01,0.86362154]
[1754588876733,0.922,775.04,774.85,1.1444425]
[1754588876937,0.922,775.04,775.01,0.86368611]
[1754588877333,0.922,775.04,775.0,0.86368611]
[1754588878737,0.922,775.04,774.99,0.86368611]
[1754588879137,0.922,775.04,775.0,0.86368611]
[1754588882737,0.922,775.04,774.99,0.86368611]
[1754588883540,0.922,775.04,775.0,0.86368611]
[1754588884640,0.922,775.04,774.99,0.86368611]
[1754588887342,0.922,775.04,774.98,0.86368611]
[1754588887540,0.922,775.04,774.99,0.86368611]
[1754588887942,0.922,775.04,774.94,0.86368611]
[1754588888240,0.922,775.04,774.97,0.86368611]
[1754588888443,0.922,775.04,774.01,0.22448427]
[1754588888444,0.922,775.04,774.98,0.86368611]
[1754588888947,0.922,775.04,774.96,0.86368611]
[1754588889140,0.922,775.04,774.91,0.86368611]
[1754588889346,0.922,775.04,774.8,0.86368611]
[1754588889541,0.922,775.04,774.74,0.86368611]
[1754588889743,0.922,775.04,774.72,0.86368611]
[1754588890046,0.922,775.04,774.7,0.86368611]
[1754588890442,0.922,775.04,774.59,0.86368611]
[1754588891342,0.922,775.04,774.58,0.86368611]
[1754588891543,0.922,775.04,774.56,0.86368611]
[1754588892248,0.922,775.04,774.57,0.86368611]
[1754588892445,0.922,775.04,774.55,0.86368611]
[1754588892648,0.922,775.04,774.58,0.86368611]
[1754588893250,0.922,775.04,774.57,0.86368611]
[1754588893549,0.922,775.04,774.6,0.86368611]
[1754588894046,0.922,775.04,774.58,0.86368611]
[1754588894848,0.922,775.04,774.59,0.86368611]
[1754588895646,0.922,775.04,774.58,0.86368611]
[1754588896251,0.922,775.04,774.59,0.86368611]
[1754588897150,0.922,775.04,774.6,0.86368611]
[1754588897349,0.922,775.04,774.61,0.86368611]
[1754588897549,0.922,775.04,774.68,0.86368611]
[1754588897850,0.922,775.04,774.7,0.86368611]
[1754588898151,0.922,775.04,774.76,0.86368611]
[1754588898350,0.922,775.04,774.82,0.86368611]
[1754588898850,0.922,775.04,774.83,0.86368611]
[1754588899250,0.922,775.04,774.82,0.86368611]
[1754588900355,0.922,775.04,774.81,0.86368611]
[1754588900553,0.922,775.04,774.82,0.86368611]
[1754588901651,0.922,775.04,774.83,0.86368611]
[1754588903758,0.922,775.04,774.84,0.86368611]
[1754588904357,0.922,775.04,774.85,0.86368611]
[1754588906258,0.922,775.04,774.83,0.86368611]
[1754588906755,0.988,775.15,774.83,0.86368611]
[1754588909061,0.988,775.15,774.01,0.22448427]
[1754588909062,0.988,775.15,774.84,0.86368611]
[1754588909262,1.22,775.14,774.83,0.86368611]
[1754588910860,1.22,775.14,774.84,0.86368611]
[1754588911260,1.22,775.14,774.83,0.86368611]
[1754588911563,1.22,775.14,774.84,0.86368611]
[1754588915570,1.22,775.14,774.87,0.86368611]
[1754588915969,1.22,775.14,774.89,0.86368611]
[1754588919374,1.22,775.14,774.93,0.86368611]
[1754588919675,1.137,775.13,774.93,0.86368611]
[1754588926479,1.137,775.13,774.97,0.86368611]
[1754588926784,1.137,775.13,774.95,0.86368611]
[1754588928982,1.137,775.13,774.96,0.86368611]
[1754588931189,1.137,775.13,774.98,0.86368611]
[1754588931385,1.137,775.13,774.99,0.86368611]
[1754588932388,1.137,775.13,774.98,0.86368611]
[1754588933895,1.137,775.13,774.99,0.86368611]
[1754588934390,1.137,775.13,774.98,0.86368611]
[1754588934891,1.137,775.13,774.99,0.86368611]
[1754588935394,1.137,775.13,774.98,0.86368611]
[1754588935996,1.137,775.13,774.96,0.86259287]
[1754588936193,1.137,775.13,774.98,0.86259287]
[1754588937796,1.137,775.13,774.88,0.86259287]
[1754588938297,1.137,775.13,774.89,0.86259287]
[1754588938894,1.137,775.13,775.02,0.86259287]
[1754588939396,1.137,775.13,775.01,0.86259287]
[1754588939594,1.137,775.13,775.06,0.86259287]
[1754588939794,1.137,775.13,775.07,0.86259287]
[1754588941798,1.137,775.13,775.06,0.86259287]
[1754588942298,1.137,775.13,775.05,0.86259287]
[1754588943297,1.137,775.13,775.07,0.86259287]
[1754588944293,1.137,775.13,775.06,0.86259287]
[1754588944594,1.267,775.26,775.06,0.86259287]
[1754588945293,1.267,775.26,775.07,0.86259287]
[1754588945494,1.267,775.26,775.09,0.86259287]
[1754588946098,1.267,775.26,774.01,0.22448427]
[1754588946099,1.267,775.26,775.1,0.86259287]
[1754588946296,1.267,775.26,775.09,0.86259287]
[1754588947297,1.267,775.26,775.08,0.86259287]
[1754588948300,1.267,775.26,775.1,0.86259287]
[1754588949098,1.267,775.26,775.11,0.86259287]
[1754588949292,1.267,775.26,775.1,0.86259287]
[1754588951497,1.267,775.26,775.11,0.86259287]
[1754588952301,1.267,775.26,775.1,0.86259287]
[1754588952498,1.267,775.26,775.11,0.86259287]
[1754588953500,1.267,775.26,775.12,0.86259287]
[1754588954503,1.267,775.26,775.13,0.86259287]
[1754588956504,1.267,775.26,775.14,0.86259287]
[1754588958105,1.267,775.26,775.12,0.86259287]
[1754588958907,1.267,775.26,775.13,0.86259287]
[1754588959406,1.267,775.26,775.12,0.86259287]
[1754588962002,1.267,775.26,775.13,0.86259287]
[1754588962204,1.267,775.26,775.12,0.86259287]
[1754588962510,1.267,775.26,775.13,0.86259287]
[1754588962909,1.267,775.26,775.14,0.86259287]
[1754588963110,1.267,775.26,775.12,0.86259287]
[1754588963306,1.267,775.26,774.98,1.1444425]
[1754588963307,1.267,775.26,775.13,0.86259287]
[1754588968813,1.233,775.29,775.13,0.86259287]
[1754588970513,1.233,775.29,775.14,0.86259287]
[1754588972412,1.233,775.29,775.15,0.86259287]
[1754588973111,1.233,775.29,775.16,0.86259287]
[1754588974211,1.233,775.29,775.17,0.86259287]
[1754588975413,1.233,775.29,775.18,0.86259287]
[1754588975816,0.987,775.32,775.18,0.86259287]
[1754588977016,0.987,775.32,775.17,0.86259287]
[1754588977319,0.987,775.32,775.18,0.86259287]
[1754588978321,0.987,775.32,775.19,0.86259287]
[1754588980220,0.987,775.32,775.2,0.86259287]
[1754588980418,0.987,775.32,775.15,0.86259287]
[1754588980921,0.987,775.32,775.1,0.86259287]
[1754588981416,0.987,775.32,775.11,0.86259287]
[1754588983425,0.987,775.32,775.12,0.86259287]
[1754588985429,0.987,775.32,775.13,0.86259287]
[1754588987033,0.987,775.32,775.14,0.86259287]
[1754588987329,0.928,775.37,775.14,0.86259287]
[1754588988328,0.928,775.37,775.15,0.86259287]
[1754588988633,0.928,775.37,775.1,0.86259287]
[1754588988928,0.928,775.37,775.08,0.86259287]
[1754588989129,0.928,775.37,775.04,0.86259287]
[1754588989335,1.076,775.36,775.03,0.86259287]
[1754588990232,1.076,775.36,773.73,2.8786458]
[1754588990233,1.076,775.36,775.04,0.86259287]
[1754588991528,1.076,775.36,775.05,0.86259287]
[1754588992228,1.076,775.36,775.04,0.86259287]
[1754588992733,1.076,775.36,774.98,0.86259287]
[1754588994034,1.076,775.36,774.99,0.86259287]
[1754588994231,1.076,775.36,775.0,0.86259287]
[1754588994532,1.076,775.36,774.99,0.86259287]
[1754588995133,1.076,775.36,775.0,0.86259287]
[1754588995534,0.773,775.35,775.0,0.86259287]
[1754588996237,0.773,775.35,774.99,0.86259287]
[1754588996439,0.773,775.35,775.0,0.86259287]
[1754588997241,0.773,775.35,774.8,1.1444425]
[1754588997441,0.773,775.35,775.0,0.86405825]
[1754589001249,0.773,775.35,774.99,0.86405825]
[1754589001945,0.773,775.35,775.0,0.86405825]
[1754589002350,0.773,775.35,775.03,0.86405825]
[1754589002852,0.773,775.35,774.97,0.86405825]
[1754589003048,0.773,775.35,774.94,0.86405825]
[1754589003251,0.773,775.35,774.87,0.86405825]
[1754589003451,0.773,775.35,774.83,0.86405825]
[1754589003949,0.773,775.35,774.84,0.86405825]
[1754589004145,0.773,775.35,774.83,0.86405825]
[1754589005351,0.773,775.35,774.82,0.86405825]
[1754589006254,0.773,775.35,774.81,0.86405825]
[1754589008249,0.773,775.35,774.82,0.86405825]
[1754589009450,0.773,775.35,774.84,0.86405825]
[1754589010752,0.773,775.35,774.86,0.86405825]
[1754589012354,0.773,775.35,774.92,0.86405825]
[1754589012852,0.773,775.35,774.91,0.86405825]
[1754589013057,0.773,775.35,774.9,0.86405825]
[1754589016456,0.773,775.35,774.91,0.86405825]
[1754589017156,0.773,775.35,774.92,0.86405825]
[1754589017356,1.269,775.34,774.92,0.86405825]
[1754589017552,1.269,775.34,774.91,0.86405825]
[1754589019159,1.269,775.34,774.89,0.86405825]
[1754589019454,1.269,775.34,774.85,0.86405825]
[1754589020058,1.269,775.34,774.84,0.86405825]
[1754589020255,1.269,775.34,774.82,0.86405825]
[1754589021560,1.269,775.34,774.84,0.86405825]
[1754589022264,1.269,775.34,774.85,0.86405825]
[1754589022760,1.269,775.34,774.81,0.86405825]
[1754589022962,1.269,775.34,774.8,0.86405825]
[1754589023261,1.269,775.34,774.81,0.86405825]
[1754589023462,1.269,775.34,774.84,0.86405825]
[1754589023860,1.269,775.34,774.95,0.86405825]
[1754589025358,1.269,775.34,774.96,0.86405825]
[1754589025560,1.269,775.34,774.95,0.86405825]
[1754589026164,1.269,775.34,774.98,0.86405825]
[1754589026361,1.269,775.34,775.04,0.86405825]
[1754589027160,1.269,775.34,775.05,0.86405825]
[1754589027462,1.269,775.34,775.04,0.86405825]
[1754589027664,1.269,775.34,775.07,0.86405825]
[1754589028161,1.269,775.34,775.03,0.86405825]
[1754589029366,1.269,775.34,774.98,0.86405825]
[1754589029667,0.773,775.35,774.98,0.86405825]
[1754589030166,0.773,775.35,774.99,0.86405825]
[1754589030364,0.773,775.35,774.97,0.86405825]
[1754589030564,0.773,775.35,774.01,0.22448427]
[1754589030565,0.773,775.35,774.9,0.86405825]
[1754589030976,0.773,775.35,774.89,0.86405825]
[1754589031163,1.08,775.34,774.87,0.86405825]
[1754589031364,1.08,775.34,774.9,0.86405825]
[1754589031766,1.08,775.34,774.91,0.86405825]
[1754589032263,1.08,775.34,774.93,0.86405825]
[1754589032765,1.08,775.34,774.95,0.86405825]
[1754589032965,1.08,775.34,774.94,0.86405825]
[1754589033167,1.08,775.34,774.95,0.86405825]
[1754589033363,1.08,775.34,774.97,0.86405825]
[1754589035370,1.08,775.34,774.78,1.1444425]
[1754589035371,1.08,775.34,775.05,0.86405825]
[1754589035667,1.08,775.34,775.07,0.86405825]
[1754589036367,1.08,775.34,775.09,0.86405825]
[1754589037366,0.873,775.33,775.09,0.86405825]
[1754589038371,0.873,775.33,775.1,0.86405825]
[1754589038967,0.873,775.33,775.11,0.86405825]
[1754589039667,0.873,775.33,775.12,0.86405825]
[1754589040271,0.873,775.33,775.11,0.86405825]
[1754589040471,0.873,775.33,775.12,0.86405825]
[1754589040674,0.873,775.33,775.11,0.86405825]
[1754589041769,0.873,775.33,775.12,0.86405825]
[1754589043070,0.873,775.33,775.13,0.86405825]
[1754589043671,0.873,775.33,775.09,0.86405825]
[1754589043968,0.873,775.33,775.15,0.86405825]
[1754589045875,0.873,775.33,775.25,0.86405825]
[1754589046176,0.873,775.33,775.24,0.86405825]
[1754589047278,0.873,775.33,775.08,0.86405825]
[1754589051590,0.873,775.33,775.07,0.86405825]
[1754589052488,0.873,775.33,775.06,0.86405825]
[1754589052690,0.873,775.33,775.05,0.86405825]
[1754589053392,0.873,775.33,775.02,0.86405825]
[1754589053587,0.873,775.33,774.93,0.86405825]
[1754589053791,0.873,775.33,774.95,0.86405825]
[1754589053994,0.873,775.33,774.9,0.86405825]
[1754589054193,0.873,775.33,774.91,0.86405825]
[1754589054389,0.873,775.33,774.9,0.86405825]
[1754589055189,0.873,775.33,774.91,0.86405825]
[1754589055391,0.873,775.33,774.9,0.86405825]
[1754589057798,0.873,775.33,774.93,0.86405825]
[1754589058093,0.873,775.33,774.92,0.86405825]
[1754589059197,0.873,775.33,774.93,0.86405825]
[1754589059398,0.873,775.33,774.92,0.86405825]
[1754589059600,0.873,775.33,774.95,0.86405825]
[1754589059797,0.873,775.33,774.89,0.86405825]
[1754589060098,0.873,775.33,774.85,0.86405825]
[1754589060501,0.873,775.33,774.83,0.86405825]
[1754589061504,0.873,775.33,774.82,0.86405825]
[1754589061900,0.873,775.33,774.84,0.86405825]
[1754589063206,0.914,775.32,774.85,0.86405825]
[1754589063906,0.914,775.32,774.84,0.86405825]
[1754589064307,0.914,775.32,774.77,0.86405825]
[1754589064507,0.914,775.32,774.78,0.86405825]
[1754589066906,0.914,775.32,774.77,0.86405825]
[1754589069106,0.914,775.32,774.78,0.86405825]
[1754589071311,0.914,775.32,774.77,0.86405825]
[1754589072113,0.914,775.32,774.78,0.86405825]
[1754589072316,0.914,775.32,774.77,0.86405825]
[1754589073610,0.914,775.32,774.78,0.86405825]
[1754589074112,0.914,775.32,774.82,0.86405825]
[1754589074315,0.914,775.32,774.81,0.86405825]
[1754589078118,1.259,775.31,774.81,0.86405825]
[1754589078812,1.259,775.31,774.79,0.86405825]
[1754589079813,1.259,775.31,774.81,0.86405825]
[1754589080518,1.259,775.31,774.82,0.86405825]
[1754589084223,1.259,775.31,774.83,0.86405825]
[1754589085420,1.259,775.31,774.74,0.86405825]
[1754589088321,1.259,775.31,774.73,0.86405825]
[1754589088921,1.259,775.31,774.74,0.86405825]
[1754589089423,1.259,775.31,774.73,0.86405825]
[1754589093325,1.259,775.31,774.72,0.86405825]
[1754589093624,1.259,775.31,774.53,1.1444425]
[1754589093625,1.259,775.31,774.73,0.86405825]
[1754589093823,1.259,775.31,774.72,0.86405825]
[1754589094024,1.259,775.31,774.73,0.86405825]
[1754589094830,1.259,775.31,774.76,0.86405825]
[1754589095026,1.259,775.31,774.75,0.86405825]
[1754589095326,1.259,775.31,774.43,0.22438729]
[1754589095327,1.259,775.31,774.79,0.86405825]
[1754589096426,1.259,775.31,774.78,0.86405825]
[1754589096630,1.259,775.31,774.79,0.86405825]
[1754589096828,1.259,775.31,774.78,0.86405825]
[1754589098232,1.259,775.31,774.79,0.86405825]
[1754589100135,1.259,775.31,774.8,0.86405825]
[1754589101235,1.259,775.31,774.79,0.86405825]
[1754589102039,1.259,775.31,774.76,0.86405825]
[1754589102236,0.87,775.3,774.76,0.86405825]
[1754589104246,0.87,775.3,774.77,0.86405825]
[1754589104837,0.87,775.3,774.75,0.86405825]
[1754589105038,0.87,775.3,774.76,0.86405825]
[1754589105238,0.87,775.3,774.77,0.86405825]
[1754589106238,0.87,775.3,774.78,0.86405825]
[1754589107242,0.87,775.3,774.8,0.86405825]
[1754589108243,0.87,775.3,774.81,0.86405825]
[1754589108442,0.87,775.3,774.86,0.86405825]
[1754589108640,0.87,775.3,774.93,0.86405825]
[1754589108842,0.87,775.3,774.94,0.86405825]
[1754589109140,0.87,775.3,774.95,0.86405825]
[1754589109342,0.87,775.3,774.97,0.86405825]
[1754589110343,0.87,775.3,774.98,0.86405825]
[1754589111240,0.87,775.3,774.99,0.86405825]
[1754589112245,0.87,775.3,775.0,0.86405825]
[1754589112442,0.87,775.3,775.01,0.86405825]
[1754589112646,0.87,775.3,775.0,0.86405825]
[1754589113047,0.87,775.3,775.02,0.86405825]
[1754589113344,0.87,775.3,775.03,0.86405825]
[1754589114946,0.87,775.3,775.04,0.86405825]
[1754589115748,0.87,775.3,775.05,0.86405825]
[1754589116245,0.87,775.3,775.04,0.86405825]
[1754589118745,0.87,775.3,775.08,0.86405825]
[1754589121247,0.87,775.3,775.06,0.86405825]
[1754589122448,0.87,775.3,775.05,0.86405825]
[1754589122848,0.87,775.3,775.06,0.86405825]
[1754589124251,0.87,775.3,775.12,0.86405825]
[1754589124449,0.87,775.3,775.11,0.86405825]
[1754589125452,0.87,775.3,775.22,0.86405825]
[1754589125750,2.091,775.3,775.22,0.86405825]
[1754589126354,2.091,775.3,775.2,0.86405825]
[1754589127356,2.091,775.3,775.19,0.86405825]
[1754589128261,2.091,775.3,775.18,0.86405825]
[1754589129357,2.091,775.3,775.17,0.86405825]
[1754589129856,2.091,775.3,775.18,0.86405825]
[1754589130356,2.091,775.3,775.17,0.86405825]
[1754589130757,2.091,775.3,775.16,0.86405825]
[1754589131358,2.091,775.3,775.15,0.86405825]
[1754589133362,2.091,775.3,775.14,0.86405825]
[1754589135269,2.091,775.3,775.13,0.86405825]
[1754589136269,1.221,775.3,775.12,0.86405825]
[1754589136471,1.221,775.3,775.1,0.86405825]
[1754589138169,1.221,775.3,775.09,0.86405825]
[1754589138570,1.203,775.29,775.09,0.86405825]
[1754589140072,1.203,775.29,775.07,0.86405825]
[1754589140271,1.203,775.29,775.01,0.86405825]
[1754589140475,1.203,775.29,775.02,0.86405825]
[1754589142473,1.203,775.29,775.03,0.86405825]
[1754589143277,1.203,775.29,775.02,0.86405825]
[1754589143978,1.203,775.29,775.01,0.86405825]
[1754589145274,1.203,775.29,775.02,0.86405825]
[1754589147381,1.203,775.29,775.01,0.86405825]
[1754589147582,1.203,775.29,774.98,0.86405825]
[1754589148681,1.203,775.29,774.99,0.86405825]
[1754589148978,1.203,775.29,774.98,0.86405825]
[1754589149181,1.203,775.29,774.99,0.86405825]
[1754589151383,1.203,775.29,775.0,0.86405825]
[1754589151785,1.203,775.29,774.99,0.86405825]
[1754589152881,1.203,775.29,775.0,0.86405825]
[1754589153886,1.203,775.29,775.02,0.86405825]
[1754589154084,1.203,775.29,775.03,0.86405825]
[1754589154284,1.203,775.29,775.04,0.86405825]
[1754589154588,1.203,775.29,774.98,0.86405825]
[1754589156288,1.203,775.29,774.99,0.86405825]
[1754589157286,1.203,775.29,775.0,0.86405825]
[1754589159890,1.203,775.29,775.01,0.86405825]
[1754589161091,1.203,775.29,774.43,0.22438729]
[1754589161092,1.203,775.29,774.94,0.86405825]
[1754589161292,1.203,775.29,774.95,0.86405825]
[1754589161794,1.203,775.29,774.93,0.86405825]
[1754589161990,1.203,775.29,774.92,0.86405825]
[1754589162392,1.203,775.29,774.93,0.86405825]
[1754589163291,1.203,775.29,774.94,0.86405825]
[1754589164496,1.203,775.29,774.95,0.86405825]
[1754589164898,1.203,775.29,774.97,0.86405825]
[1754589165295,1.203,775.29,774.98,0.86405825]
[1754589165492,1.203,775.29,774.97,0.86405825]
[1754589166097,1.203,775.29,774.96,0.86405825]
[1754589166293,1.203,775.29,774.95,0.86405825]
[1754589166595,1.203,775.29,774.96,0.86405825]
[1754589167300,1.203,775.29,774.95,0.86405825]
[1754589168399,1.203,775.29,774.96,0.86405825]
[1754589169198,1.203,775.29,774.9,0.86405825]
[1754589169501,1.203,775.29,774.89,0.86405825]
[1754589171402,1.203,775.29,774.88,0.86405825]
[1754589173499,1.203,775.29,774.87,0.86405825]
[1754589173704,1.203,775.29,774.88,0.86405825]
[1754589175006,1.203,775.29,774.89,0.86405825]
[1754589175402,0.949,775.28,774.89,0.86405825]
[1754589176407,0.949,775.28,774.88,0.86405825]
[1754589177704,0.949,775.28,774.91,0.86405825]
[1754589179103,0.949,775.28,774.94,0.86405825]
[1754589179307,0.949,775.28,774.93,0.86405825]
[1754589179507,0.949,775.28,774.94,0.86405825]
[1754589180308,0.949,775.28,774.95,0.86405825]
[1754589180507,0.896,775.27,774.95,0.86405825]
[1754589181406,0.896,775.27,774.94,0.86405825]
[1754589183213,0.896,775.27,774.93,0.86405825]
[1754589185009,0.896,775.27,774.91,0.86405825]
[1754589185413,0.896,775.27,774.9,0.86405825]
[1754589186014,0.896,775.27,774.91,0.86405825]
[1754589186216,0.896,775.27,774.9,0.86405825]
[1754589186513,0.896,775.27,774.91,0.86405825]
[1754589186714,0.896,775.27,774.9,0.86405825]
[1754589187310,0.896,775.27,774.91,0.86405825]
[1754589193318,0.896,775.27,774.92,0.86405825]
[1754589195020,0.896,775.27,774.93,0.86405825]
[1754589195217,0.896,775.27,774.8,1.1444425]
[1754589195218,0.896,775.27,774.94,0.86405825]
[1754589196321,0.896,775.27,774.95,0.86405825]
[1754589199127,1.074,775.26,774.95,0.86405825]
[1754589199327,1.074,775.26,774.96,0.86405825]
[1754589201431,1.074,775.26,774.89,0.86405825]
[1754589202230,1.074,775.26,774.84,0.86405825]
[1754589202435,1.074,775.26,774.94,0.86405825]
[1754589203430,1.074,775.26,774.95,0.86405825]
[1754589205734,1.074,775.26,774.96,0.86405825]
[1754589206932,1.074,775.26,774.99,0.86405825]
[1754589209138,1.074,775.26,775.01,0.86405825]
[1754589210137,1.074,775.26,775.03,0.86405825]
[1754589210539,1.074,775.26,775.05,0.86405825]
[1754589212242,1.074,775.26,775.09,0.86405825]
[1754589212442,1.074,775.26,775.11,0.86405825]
[1754589212643,1.074,775.26,775.12,0.86405825]
[1754589216845,1.074,775.26,775.13,0.86405825]
[1754589218543,1.074,775.26,774.98,0.86405825]
[1754589218844,1.074,775.26,775.06,0.86405825]
[1754589219248,1.074,775.26,775.05,0.86405825]
[1754589219544,1.074,775.26,775.06,0.86405825]
[1754589219847,1.074,775.26,775.15,0.86405825]
[1754589220449,1.074,775.26,775.08,1.1444425]
[1754589221244,1.074,775.26,775.09,1.1444425]
[1754589221645,1.074,775.26,775.08,1.1444425]
[1754589221848,1.074,775.26,775.09,1.1444425]
[1754589222048,1.074,775.26,775.12,1.1444425]
[1754589222249,1.074,775.26,775.11,1.1444425]
[1754589222743,1.074,775.26,775.12,1.1444425]
[1754589223447,1.074,775.26,775.1,1.1444425]
[1754589224348,1.074,775.26,775.09,1.1444425]
[1754589225249,1.074,775.26,775.08,1.1444425]
[1754589225446,1.074,775.26,775.1,1.1444425]
[1754589226247,1.074,775.26,775.11,1.1444425]
[1754589226747,1.074,775.26,775.15,1.1444425]
[1754589227346,1.074,775.26,775.14,1.1444425]
[1754589227748,1.074,775.26,775.21,1.1444425]
[1754589228349,1.074,775.26,775.2,1.1444425]
[1754589228852,1.074,775.26,775.25,1.1444425]
[1754589229253,1.074,775.26,775.23,1.1444425]
[1754589230449,1.074,775.26,775.22,1.1444425]
[1754589231354,1.074,775.26,775.19,1.1444425]
[1754589232247,1.074,775.26,775.18,1.1444425]
[1754589233457,1.074,775.26,775.16,1.1444425]
[1754589234056,1.074,775.26,775.17,1.1444425]
[1754589234253,1.074,775.26,775.16,1.1444425]
[1754589235159,1.074,775.26,775.15,1.1444425]
[1754589235557,1.074,775.26,775.14,1.1444425]
[1754589237259,1.074,775.26,775.13,1.1444425]